bitfinex-derivatives/quotes_SOLF0:USTF0_20250817
["timestamp","ask_amount","ask_price","bid_price","bid_amount"]
[1755463714835,11.13709697,191.73,191.72,3.03593292]
[1755463715333,11.13700396,191.73,191.72,3.03593292]
[1755463718330,6.63342428,191.73,191.72,3.03593292]
[1755463718634,11.13691526,191.73,191.72,3.03593292]
[1755463723439,11.13754566,191.73,191.72,3.03593292]
[1755463724340,6.63405468,191.73,191.72,3.03593292]
[1755463724543,11.13767338,191.73,191.72,3.03593292]
[1755463733457,11.13896227,191.73,191.72,3.03593292]
[1755463741555,6.63405468,191.73,191.72,3.03593292]
[1755463741760,11.14832318,191.73,191.72,3.03593292]
[1755463742260,8.23832318,191.73,191.72,3.03593292]
[1755463742461,3.72405468,191.73,191.72,3.03593292]
[1755463742655,8.23820071,191.73,191.72,3.03593292]
[1755463743354,3.72405468,191.73,191.72,3.03593292]
[1755463743552,8.2384064,191.73,191.72,3.03593292]
[1755463744058,11.0284064,191.73,191.72,3.03593292]
[1755463745461,11.0284064,191.73,191.72,0.03593292]
[1755463746163,13.69555617,191.73,191.72,0.03593292]
[1755463746960,13.69555617,191.73,191.59,8.73087887]
[1755463747166,2.79,191.66,191.61,3.06]
[1755463747461,1.56522662,191.63,191.58,3.06]
[1755463747667,1.56522662,191.63,191.57,3.06]
[1755463747668,11.04701636,191.62,191.57,3.06]
[1755463747862,2.79,191.6,191.54,62.08866046]
[1755463748168,2.79,191.57,191.55,3.06]
[1755463748659,2.79,191.56,191.55,3.06]
[1755463750268,2.79,191.56,191.51,3.06]
[1755463750470,0.03453387,191.61,191.51,3.06]
[1755463750471,2.79,191.54,191.51,3.06]
[1755463751068,2.79,191.53,191.51,3.06]
[1755463751468,0.03811371,191.54,191.51,3.06]
[1755463751866,2.82811371,191.54,191.51,3.06]
[1755463752065,0.03811371,191.54,191.51,3.06]
[1755463752369,2.79,191.53,191.51,3.06]
[1755463753067,2.79,191.52,191.51,3.06]
[1755463753272,2.79,191.53,191.51,3.06]
[1755463753769,2.79,191.53,191.47,3.06]
[1755463753967,2.79,191.51,191.47,3.06]
[1755463755264,2.79,191.51,191.48,3.06]
[1755463756065,2.82363064,191.51,191.48,3.06]
[1755463758672,2.82363064,191.51,191.41,7.67057863]
[1755463758673,3.07,191.5,191.42,2.78]
[1755463767978,5.51947863,191.5,191.42,2.78]
[1755463768182,3.07,191.49,191.42,2.78]
[1755463771082,3.07,191.49,191.43,5.2205]
[1755463771291,0.03363064,191.51,191.34,350.56]
[1755463771292,0.03363064,191.51,191.45,2.78]
[1755463771580,0.03363064,191.51,191.48,2.78]
[1755463771781,3.07,191.55,191.49,5.2188]
[1755463771982,0.03321335,191.51,191.5,2.78]
[1755463780391,0.03321335,191.51,191.5,5.22947863]
[1755463782596,3.10321335,191.51,191.5,5.22947863]
[1755463782794,3.10321335,191.51,191.5,2.78]
[1755463783194,2.44947863,191.65,191.5,5.22947863]
[1755463783393,3.07,191.57,191.53,2.44947863]
[1755463783597,3.07,191.57,191.54,2.78]
[1755463784697,3.07,191.57,191.54,2.81591657]
[1755463791707,3.07,191.57,191.55,2.83]
[1755463792307,4.55331757,191.56,191.55,2.83]
[1755463792606,7.42331757,191.56,191.55,2.83]
[1755463795415,2.87,191.56,191.55,2.83]
[1755463796114,2.87,191.56,191.54,4.43191075]
[1755463796315,2.87,191.56,191.54,0.03591657]
[1755463796519,2.87,191.54,191.49,2.83]
[1755463797314,0.03920288,191.57,191.53,2.83]
[1755463797622,2.87,191.55,191.54,1.56599418]
[1755463798123,2.87,191.55,191.53,2.83]
[1755463798519,2.87,191.58,191.53,2.83]
[1755463798927,0.03326193,191.56,191.53,8.0475]
[1755463799119,0.03326193,191.56,191.53,2.83]
[1755463799725,0.03326193,191.56,191.54,2.83]
[1755463799923,2.90326193,191.56,191.54,2.83]
[1755463800120,0.03326193,191.56,191.54,2.83]
[1755463800727,0.03326193,191.56,191.52,2.4472202]
[1755463800928,0.03326193,191.56,191.53,2.83]
[1755463801228,2.87,191.55,191.53,2.83]
[1755463801528,2.90326193,191.56,191.54,2.83]
[1755463802929,0.03326193,191.56,191.54,2.83]
[1755463803132,2.87,191.55,191.54,2.83]
[1755463803924,0.03326193,191.56,191.54,2.83]
[1755463804125,2.90326193,191.56,191.54,2.83]
[1755463807333,2.90326193,191.56,191.54,8.0474]
[1755463807536,0.03326193,191.56,191.55,2.83]
[1755463809830,2.90326193,191.56,191.55,2.83]
[1755463810934,0.03326193,191.56,191.55,2.83]
[1755463812338,0.03326193,191.56,191.55,8.0472]
[1755463813442,0.03326193,191.56,191.55,10.4944202]
[1755463818945,2.91326193,191.56,191.55,10.4944202]
[1755463819345,0.03326193,191.56,191.55,10.4944202]
[1755463826744,2.4472202,191.67,191.59,3.0]
[1755463826745,2.88,191.67,191.59,3.0]
[1755463826944,2.88,191.65,191.59,3.0]
[1755463827150,2.88,191.63,191.59,3.0]
[1755463827349,2.88,191.63,191.6,3.0]
[1755463827549,2.88,191.63,191.61,3.0]
[1755463828449,2.88,191.63,191.6,3.03387384]
[1755463828644,2.88,191.63,191.6,0.03387384]
[1755463834843,2.88,191.63,191.6,3.03387384]
[1755463835451,2.88,191.63,191.61,3.0]
[1755463841254,2.88,191.63,191.62,3.0]
[1755463841458,2.88,191.64,191.62,3.0]
[1755463841654,126.36,191.68,191.62,3.0]
[1755463841655,2.88,191.67,191.62,3.0]
[1755463841859,2.88,191.67,191.6,0.03387384]
[1755463841860,126.2,191.73,191.64,2.4472202]
[1755463842061,2.88,191.68,191.65,3.0]
[1755463842258,126.2,191.73,191.65,3.0]
[1755463842460,5.3272202,191.71,191.62,3.0]
[1755463842656,8.29967619,191.7,191.65,0.03895432]
[1755463842863,11.17967619,191.69,191.65,0.03895432]
[1755463843061,2.88,191.67,191.65,0.03895432]
[1755463843262,3.77389829,191.66,191.65,0.03895432]
[1755463843461,6.65389829,191.66,191.65,0.03895432]
[1755463850064,6.65389829,191.66,191.65,2.82895432]
[1755463850568,2.91,191.68,191.65,2.82895432]
[1755463850867,2.91,191.66,191.65,2.82895432]
[1755463851969,2.91,191.72,191.65,2.82895432]
[1755463852169,8.22324904,191.71,191.65,2.82895432]
[1755463852368,2.91,191.69,191.65,2.82895432]
[1755463853768,2.91,191.72,191.65,0.03895432]
[1755463853966,2.91,191.67,191.65,0.03895432]
[1755463856372,2.91,191.67,191.65,2.82895432]
[1755463858564,2.91,191.67,191.65,0.03895432]
[1755463858768,2.91,191.67,191.66,2.79]
[1755463858968,3.7747658,191.67,191.65,0.03895432]
[1755463859168,2.91,191.66,191.65,0.03895432]
[1755463860878,2.91,191.66,191.65,2.82895432]
[1755463861474,2.91,191.66,191.65,0.03895432]
[1755463861772,11.13849931,191.66,191.65,0.03895432]
[1755463862077,11.13906442,191.66,191.65,0.03895432]
[1755463864778,6.68514486,191.66,191.65,0.03895432]
[1755463864979,11.14011357,191.66,191.65,0.03895432]
[1755463867173,11.14011357,191.66,191.65,2.82895432]
[1755463867782,8.23011357,191.66,191.65,2.82895432]
[1755463867978,6.68514486,191.66,191.65,2.82895432]
[1755463868179,11.13970267,191.66,191.65,2.82895432]
[1755463868681,11.13970267,191.66,191.65,0.03895432]
[1755463871682,11.13970267,191.66,191.65,2.82895432]
[1755463872081,8.22970267,191.66,191.65,2.82895432]
[1755463873386,11.13970267,191.66,191.65,2.82895432]
[1755463873583,11.14073952,191.66,191.65,0.03895432]
[1755463876885,137.58073952,191.66,191.65,0.03895432]
[1755463877282,137.58147451,191.66,191.65,0.03895432]
[1755463879288,137.58147451,191.66,191.65,2.97895432]
[1755463882087,137.58147451,191.66,191.65,0.03895432]
[1755463884386,137.58147451,191.66,191.65,2.97895432]
[1755463886387,137.58005378,191.66,191.65,2.97895432]
[1755463888286,134.67005378,191.66,191.65,2.97895432]
[1755463888992,134.67005378,191.66,191.65,0.03895432]
[1755463889292,137.69005378,191.66,191.65,2.97895432]
[1755463890393,133.23514486,191.66,191.65,2.97895432]
[1755463890991,137.69124262,191.66,191.65,2.97895432]
[1755463891190,133.23514486,191.66,191.65,2.97895432]
[1755463891597,137.69120998,191.66,191.65,2.97895432]
[1755463891897,133.23514486,191.66,191.65,0.03895432]
[1755463892489,137.69165761,191.66,191.65,0.03895432]
[1755463896196,137.69165761,191.66,191.65,2.97895432]
[1755463897395,133.23514486,191.66,191.65,2.97895432]
[1755463897595,137.69300337,191.66,191.65,2.97895432]
[1755463898291,137.69300337,191.66,191.65,0.03895432]
[1755463898601,3.02,191.65,191.55,2.94]
[1755463898796,137.08022357,191.64,191.55,2.94]
[1755463898998,3.02,191.62,191.55,2.94]
[1755463899194,134.69300337,191.61,191.55,2.94]
[1755463899401,6.79514486,191.6,191.55,2.94]
[1755463899596,126.46,191.59,191.55,2.94]
[1755463899798,0.0387826,191.6,191.55,2.94]
[1755463900194,0.0387826,191.6,191.56,2.4472202]
[1755463900401,0.0387826,191.6,191.57,2.94]
[1755463905806,3.0587826,191.6,191.57,2.94]
[1755463906609,3.02,191.58,191.57,2.94]
[1755463909604,0.0387826,191.6,191.57,2.94]
[1755463910200,0.0387826,191.6,191.58,5.2164]
[1755463910506,0.0387826,191.6,191.59,3.07]
[1755463918612,2.8487826,191.6,191.59,3.07]
[1755463918813,2.81,191.59,191.54,57.97513732]
[1755463919216,2.81,191.59,191.56,3.07]
[1755463919417,2.81,191.59,191.57,3.07]
[1755463920415,2.81,191.59,191.55,3.07]
[1755463920613,0.0387826,191.6,191.53,3.07]
[1755463920614,2.81,191.57,191.53,3.07]
[1755463920918,2.81,191.57,191.52,3.07]
[1755463921415,0.03753573,191.56,191.52,3.07]
[1755463921619,2.81,191.55,191.52,3.07]
[1755463921820,2.81,191.55,191.49,7.6661202]
[1755463922015,2.81,191.55,191.5,3.07]
[1755463927128,0.03753573,191.56,191.5,8.2886]
[1755463927332,0.03753573,191.56,191.55,5.5172202]
[1755463927727,2.81,191.59,191.56,3.07]
[1755463928026,2.81,191.61,191.59,3.07]
[1755463928227,5.84375388,191.7,191.59,3.07]
[1755463928530,2.81,191.62,191.59,3.07]
[1755463929429,2.81,191.62,191.59,3.10337861]
[1755463929629,2.81,191.61,191.59,3.10337861]
[1755463930523,2.81,191.69,191.59,3.10337861]
[1755463930724,2.81,191.67,191.59,3.10337861]
[1755463930933,2.81,191.65,191.59,3.10337861]
[1755463931235,2.81,191.63,191.59,3.10337861]
[1755463931431,2.81,191.61,191.59,3.10337861]
[1755463931628,2.81,191.6,191.59,0.03337861]
[1755463931832,5.84375388,191.7,191.59,0.03337861]
[1755463932025,2.81,191.61,191.59,0.03337861]
[1755463932226,2.81,191.61,191.6,3.07]
[1755463932428,5.84375388,191.7,191.6,3.07]
[1755463932732,2.81,191.64,191.6,3.07]
[1755463932933,2.81,191.62,191.6,3.07]
[1755463933730,2.81,191.61,191.6,3.07]
[1755463936929,7.65937473,191.61,191.6,3.07]
[1755463942340,7.65928802,191.61,191.6,3.07]
[1755463942540,7.65941702,191.61,191.6,3.07]
[1755463945440,2.81,191.61,191.6,3.07]
[1755463946041,7.65952873,191.61,191.6,3.07]
[1755463948344,4.84952873,191.61,191.6,3.07]
[1755463948642,2.99,191.62,191.6,3.07]
[1755463948845,2.99,191.64,191.6,3.07]
[1755463949047,7.85498923,191.63,191.6,3.07]
[1755463949244,2.99,191.63,191.6,3.07]
[1755463949442,2.99,191.63,191.6,3.10993352]
[1755463950047,2.99,191.62,191.6,3.10993352]
[1755463953047,2.4472202,191.7,191.6,0.03993352]
[1755463953254,2.99,191.68,191.61,3.02]
[1755463953446,2.99,191.66,191.61,3.02]
[1755463953642,8.71993709,191.65,191.61,3.02]
[1755463953842,2.99,191.63,191.61,3.02]
[1755463954553,2.99,191.62,191.61,3.02]
[1755463960046,2.99,191.69,191.61,3.02]
[1755463960252,2.99,191.67,191.62,1.56467137]
[1755463960556,2.99,191.65,191.63,3.02]
[1755463960750,4.8643104,191.64,191.63,3.02]
[1755463961052,7.85392961,191.64,191.63,3.02]
[1755463961641,2.99,191.64,191.63,3.02]
[1755463970357,7.85591547,191.64,191.63,3.02]
[1755463979463,7.83657932,191.64,191.63,3.02]
[1755463979966,7.83657338,191.64,191.63,3.02]
[1755463982171,1.56467137,191.7,191.63,3.02]
[1755463982358,11.50692599,191.69,191.63,3.02]
[1755463982560,8.70692599,191.68,191.63,3.02]
[1755463982758,2.8,191.66,191.64,1.56467137]
[1755463982962,7.64635325,191.65,191.64,4.54467137]
[1755463986172,11.50590122,191.65,191.64,4.54467137]
[1755463987370,6.65954797,191.65,191.64,4.54467137]
[1755463987573,11.50698231,191.65,191.64,4.54467137]
[1755463987970,6.65954797,191.65,191.64,4.54467137]
[1755463988170,11.50698231,191.65,191.64,4.54467137]
[1755463990467,7.64743434,191.65,191.64,4.54467137]
[1755463990665,4.84743434,191.65,191.64,4.54467137]
[1755463990861,2.8,191.67,191.65,2.98]
[1755463991072,2.8,191.67,191.66,4.54467137]
[1755463991271,11.50817897,191.67,191.66,4.54467137]
[1755463996576,11.50898469,191.67,191.66,4.54467137]
[1755464005984,11.51154184,191.67,191.66,4.54467137]
[1755464006183,11.51152826,191.67,191.66,4.54467137]
[1755464006875,11.51173227,191.67,191.66,4.54467137]
[1755464007584,11.51173227,191.67,191.66,1.56467137]
[1755464007883,2.88,191.66,191.65,2.81]
[1755464008075,11.59173227,191.66,191.65,2.81]
[1755464015090,6.74046805,191.66,191.65,2.81]
[1755464015284,11.58529226,191.66,191.65,2.81]
[1755464017889,8.70529226,191.66,191.65,2.81]
[1755464018691,11.58529226,191.66,191.65,2.81]
[1755464023690,2.88,191.65,191.62,2.8479263]
[1755464023896,2.88,191.63,191.62,2.8479263]
[1755464024093,11.58529226,191.63,191.62,2.8479263]
[1755464024596,6.74046805,191.63,191.62,2.8479263]
[1755464024894,11.58566676,191.63,191.62,2.8479263]
[1755464027489,11.58566676,191.63,191.62,0.0379263]
[1755464033404,13.15033813,191.63,191.62,0.0379263]
[1755464033597,5.42513942,191.63,191.57,2.96]
[1755464033799,3.05,191.6,191.57,2.96]
[1755464034202,3.05,191.6,191.58,2.96]
[1755464034404,3.05,191.6,191.55,1.56467137]
[1755464034605,3.05,191.6,191.59,2.96]
[1755464034806,7.88640298,191.6,191.59,2.96]
[1755464035203,3.05,191.6,191.59,2.96]
[1755464042203,3.08525902,191.61,191.59,4.52467137]
[1755464042399,0.03525902,191.61,191.6,2.96]
[1755464043710,3.08525902,191.61,191.6,2.96]
[1755464043912,3.05,191.6,191.58,1.56467137]
[1755464044105,3.05,191.6,191.59,2.96]
[1755464045406,3.05,191.6,191.57,2.96]
[1755464046313,3.05,191.6,191.58,2.96]
[1755464055816,3.05,191.6,191.59,2.96]
[1755464056020,7.88418493,191.6,191.59,2.96]
[1755464056520,0.0389043,191.61,191.59,2.96]
[1755464057019,3.0889043,191.61,191.59,2.96]
[1755464057422,7.88443528,191.6,191.59,2.96]
[1755464057621,7.78443528,191.6,191.59,2.96]
[1755464060128,2.95,191.6,191.59,2.96]
[1755464060316,7.7850498,191.6,191.59,2.96]
[1755464060828,7.78546859,191.6,191.59,2.96]
[1755464064324,11.64458505,191.6,191.59,2.96]
[1755464064931,4.83546859,191.6,191.59,2.96]
[1755464065129,8.69462554,191.6,191.59,2.96]
[1755464065728,4.83546859,191.6,191.59,2.96]
[1755464066522,7.78546859,191.6,191.58,1.56467137]
[1755464066830,2.95,191.6,191.59,2.88]
[1755464067029,7.79065786,191.6,191.59,2.88]
[1755464068329,11.65430215,191.6,191.59,2.88]
[1755464069526,4.84479185,191.6,191.59,4.44467137]
[1755464069729,2.95,191.65,191.6,2.88]
[1755464069928,2.95,191.65,191.64,1.56467137]
[1755464070227,3.86296432,191.65,191.64,4.44467137]
[1755464071434,6.81296432,191.65,191.64,4.44467137]
[1755464073136,2.95,191.65,191.64,4.44467137]
[1755464073332,6.80971434,191.65,191.64,4.44467137]
[1755464073533,2.95,191.65,191.64,4.44467137]
[1755464077035,2.95,191.65,191.64,1.56467137]
[1755464077231,2.95,191.66,191.64,4.44467137]
[1755464080734,3.84879255,191.65,191.64,4.44467137]
[1755464080938,6.79879255,191.65,191.64,4.44467137]
[1755464081439,6.79879255,191.65,191.64,2.88]
[1755464081639,11.53894406,191.65,191.64,2.88]
[1755464083139,7.69015151,191.65,191.64,2.88]
[1755464083331,2.95,191.65,191.64,2.88]
[1755464083639,7.68930806,191.65,191.64,2.88]
[1755464084029,2.95,191.65,191.64,2.88]
[1755464084436,7.68911891,191.65,191.64,2.88]
[1755464085144,7.68911891,191.65,191.63,0.03570108]
[1755464085348,13.10213389,191.64,191.63,0.03570108]
[1755464089539,2.8,191.63,191.53,3.04]
[1755464089740,1.56467137,191.55,191.54,3.04]
[1755464089953,1.56467137,191.55,191.49,3.04]
[1755464090146,2.8,191.54,191.49,3.04]
[1755464090345,2.8,191.54,191.5,1.56467137]
[1755464090546,2.8,191.54,191.51,3.04]
[1755464090947,2.83667523,191.54,191.51,3.04]
[1755464091448,7.53918885,191.53,191.49,3.04]
[1755464091644,2.8,191.53,191.49,3.04]
[1755464092148,2.8,191.52,191.49,3.04]
[1755464093553,2.8,191.53,191.49,3.04]
[1755464095453,4.36467137,191.53,191.49,3.04]
[1755464095655,1.56467137,191.53,191.49,3.04]
[1755464095958,2.8,191.52,191.49,3.04]
[1755464096653,2.8,191.52,191.42,3.04]
[1755464096857,1.56467137,191.51,191.46,3.04]
[1755464097155,2.8,191.5,191.46,3.04]
[1755464097449,2.839096,191.5,191.46,3.04]
[1755464097654,2.839096,191.5,191.47,3.04]
[1755464097655,2.8,191.48,191.47,3.04]
[1755464098051,2.8,191.48,191.44,3.04]
[1755464098856,2.8,191.47,191.38,7.67180343]
[1755464099058,2.8,191.47,191.45,3.04]
[1755464099253,2.8,191.47,191.46,3.04]
[1755464100452,0.03775093,191.48,191.41,2.45000343]
[1755464100660,0.03775093,191.48,191.45,3.04]
[1755464100861,2.8,191.53,191.45,3.04]
[1755464101358,0.03780258,191.48,191.45,3.04]
[1755464101854,2.8,191.51,191.45,3.04]
[1755464102055,128.89000343,191.57,191.45,3.04]
[1755464102056,0.03705037,191.48,191.45,3.04]
[1755464102460,2.8,191.5,191.45,3.04]
[1755464102854,0.03969852,191.48,191.45,3.04]
[1755464108463,2.83969852,191.48,191.45,3.04]
[1755464115362,0.03969852,191.48,191.45,3.04]
[1755464115960,0.03969852,191.48,191.45,8.2599]
[1755464116369,0.03969852,191.48,191.46,3.04]
[1755464116866,0.03969852,191.48,191.46,8.2596]
[1755464117063,0.03969852,191.48,191.46,5.2196]
[1755464117270,0.03969852,191.48,191.47,3.04]
[1755464117464,0.03969852,191.48,191.47,10.70940343]
[1755464117968,2.88,191.55,191.5,5.2184]
[1755464118166,126.42,191.61,191.51,3.05]
[1755464118167,2.88,191.54,191.51,3.05]
[1755464118470,2.88,191.53,191.51,3.05]
[1755464120666,2.88,191.6,191.51,3.05]
[1755464120868,2.88,191.58,191.5,0.03673166]
[1755464121067,2.88,191.58,191.49,3.05]
[1755464121469,2.88,191.58,191.52,0.03942016]
[1755464122075,2.88,191.56,191.52,0.03942016]
[1755464122271,2.45000343,191.54,191.47,3.05]
[1755464122573,2.88,191.53,191.47,3.05]
[1755464123674,0.03290553,191.52,191.47,3.05]
[1755464123971,0.03290553,191.52,191.44,2.45000343]
[1755464123972,2.88,191.51,191.48,3.05]
[1755464128272,2.45000343,191.51,191.42,3.05]
[1755464128468,8.53198814,191.5,191.42,3.05]
[1755464128670,2.88,191.48,191.42,3.05]
[1755464129071,2.91800817,191.48,191.42,3.05]
[1755464130474,0.03800817,191.48,191.42,3.05]
[1755464130779,0.03800817,191.48,191.45,3.05]
[1755464131172,2.88,191.51,191.45,3.05]
[1755464131681,0.0351435,191.48,191.45,3.05]
[1755464136073,0.0351435,191.48,191.45,8.2699]
[1755464136279,5.84375388,191.59,191.47,5.50000343]
[1755464136479,8.56076155,191.58,191.48,3.05]
[1755464136680,8.56076155,191.57,191.51,3.05]
[1755464136881,2.88,191.56,191.54,3.05]
[1755464137281,2.88,191.63,191.54,3.05]
[1755464137476,8.55685508,191.62,191.54,3.05]
[1755464137681,2.88,191.6,191.54,3.05]
[1755464137983,2.88,191.58,191.54,3.05]
[1755464138182,2.88,191.56,191.54,3.05]
[1755464139486,2.88,191.62,191.54,3.05]
[1755464139688,2.88,191.6,191.54,3.05]
[1755464139980,2.88,191.58,191.54,3.05]
[1755464140583,2.88,191.58,191.54,3.08365505]
[1755464143682,2.88,191.65,191.54,3.08365505]
[1755464143886,2.88,191.63,191.54,3.08365505]
[1755464144086,2.88,191.61,191.54,3.05]
[1755464144286,3.86832674,191.6,191.54,3.05]
[1755464144483,2.88,191.59,191.57,0.03680996]
[1755464145487,2.88,191.59,191.57,3.08680996]
[1755464146887,2.88,191.59,191.57,0.03680996]
[1755464149293,8.29375731,191.66,191.58,3.0]
[1755464149494,8.53901152,191.65,191.58,3.0]
[1755464149693,8.53901152,191.64,191.58,3.0]
[1755464149897,11.56901152,191.63,191.58,3.0]
[1755464150091,3.03,191.61,191.57,3.03680996]
[1755464150293,3.03,191.59,191.57,3.03680996]
[1755464150493,3.03,191.59,191.57,0.03680996]
[1755464153797,3.03,191.62,191.57,0.03680996]
[1755464154005,3.03,191.58,191.49,3.0]
[1755464154294,2.48701777,191.6,191.46,3.0]
[1755464154295,3.03,191.56,191.46,3.0]
[1755464154499,3.03,191.54,191.46,3.0]
[1755464155397,3.06297375,191.52,191.46,3.0]
[1755464155701,0.03297375,191.52,191.47,7.66920343]
[1755464155894,0.03297375,191.52,191.48,3.0]
[1755464158305,3.06297375,191.52,191.48,3.0]
[1755464161606,3.03,191.51,191.48,3.0]
[1755464162307,3.03,191.5,191.48,3.0]
[1755464163700,0.03297375,191.52,191.46,3.0]
[1755464163913,3.03,191.51,191.46,3.0]
[1755464164410,0.03297375,191.52,191.46,3.0]
[1755464164713,3.03,191.5,191.46,3.0]
[1755464166210,3.03,191.51,191.46,3.0]
[1755464166808,3.03,191.51,191.45,2.45000343]
[1755464167000,3.03,191.51,191.43,3.0]
[1755464167207,3.03,191.49,191.43,3.0]
[1755464167406,5.48000343,191.58,191.45,2.45000343]
[1755464167608,3.03,191.56,191.46,3.0]
[1755464167803,0.03579595,191.48,191.46,3.0]
[1755464168007,3.03,191.51,191.46,3.0]
[1755464168315,0.03660117,191.49,191.47,3.0]
[1755464168808,3.03,191.5,191.47,3.0]
[1755464169114,3.07004151,191.5,191.47,3.0]
[1755464171114,0.04004151,191.5,191.47,3.0]
[1755464171714,3.07004151,191.5,191.47,5.2194]
[1755464172017,3.07004151,191.5,191.48,3.0]
[1755464174919,0.04004151,191.5,191.48,3.0]
[1755464175112,3.03,191.49,191.48,3.0]
[1755464176120,0.04004151,191.5,191.47,3.0]
[1755464176325,3.03,191.49,191.48,3.0]
[1755464177922,3.03,191.49,191.46,3.05]
[1755464180017,2.82,191.49,191.45,7.66990343]
[1755464180222,2.82,191.49,191.47,3.05]
[1755464181121,0.04004151,191.5,191.47,3.05]
[1755464181324,2.82,191.48,191.47,3.05]
[1755464182322,2.82,191.48,191.42,3.05]
[1755464182812,2.82,191.48,191.41,49.20692796]
[1755464182813,2.82,191.48,191.43,5.2204]
[1755464183125,2.82,191.48,191.44,3.05]
[1755464183626,2.82,191.48,191.45,3.05]
[1755464183924,2.82,191.48,191.43,7.67040343]
[1755464184125,2.82,191.48,191.45,3.05]
[1755464184623,2.82,191.48,191.42,3.05]
[1755464185722,2.82,191.48,191.41,3.05]
[1755464192743,2.45000343,191.43,191.3,3.05]
[1755464193038,2.82,191.41,191.31,3.05]
[1755464193536,0.03920181,191.38,191.31,3.05]
[1755464193731,2.82,191.37,191.31,3.05]
[1755464194134,2.82,191.37,191.31,5.2237]
[1755464194327,2.82,191.37,191.32,3.05]
[1755464194731,2.82,191.37,191.31,3.05]
[1755464195931,2.82,191.37,191.32,3.05]
[1755464196440,2.82,191.37,191.29,3.05]
[1755464197037,2.82,191.37,191.3,5.224]
[1755464197340,2.82,191.34,191.31,3.05]
[1755464199040,2.82,191.33,191.31,3.05]
[1755464199231,2.82,191.33,191.29,3.05]
[1755464199437,2.82,191.33,191.27,3.05]
[1755464199742,2.82,191.33,191.28,2.45000343]
[1755464199942,0.03773368,191.32,191.29,3.05]
[1755464200346,2.82,191.31,191.27,2.45000343]
[1755464200551,0.03773368,191.32,191.27,2.45000343]
[1755464200743,0.03773368,191.32,191.3,5.2239]
[1755464200937,0.03773368,191.32,191.31,3.05]
[1755464201336,0.03773368,191.32,191.31,8.2738]
[1755464201644,0.03773368,191.32,191.31,3.05]
[1755464202044,2.85773368,191.32,191.3,3.05]
[1755464202247,2.85773368,191.32,191.29,2.45000343]
[1755464202546,2.85773368,191.32,191.31,3.05]
[1755464203751,2.85773368,191.32,191.26,2.45000343]
[1755464203947,2.85773368,191.32,191.28,3.05]
[1755464205140,0.03773368,191.32,191.29,5.2242]
[1755464205349,0.03773368,191.32,191.3,3.05]
[1755464206448,2.82,191.31,191.29,2.45000343]
[1755464206647,0.03773368,191.32,191.29,2.45000343]
[1755464206851,2.82,191.3,191.29,2.45000343]
[1755464207050,2.82,191.3,191.29,5.50000343]
[1755464207250,0.03773368,191.32,191.29,5.50000343]
[1755464207444,2.82,191.31,191.3,3.05]
[1755464208349,3.01,191.3,191.29,2.93]
[1755464215757,3.01,191.3,191.27,2.93]
[1755464215956,3.01,191.3,191.24,2.93]
[1755464217049,3.01,191.3,191.25,2.93]
[1755464219647,3.01,191.3,191.26,2.93]
[1755464220049,3.01,191.3,191.27,2.93]
[1755464220244,3.01,191.3,191.27,1.57042287]
[1755464220447,0.03773368,191.32,191.28,2.93]